Cogmind - Beta 11 @@@ ROGUE MODE // 2022.03.26 @ 18:21:21 Player: Gobbopathe Result: Destroyed by G-73 Enforcer with Phase Gun Performance ------------- Evolutions (6) 3000 Regions Visited (18) 3600 Robots Destroyed (180) 900 Value Destroyed (7799) 7799 Prototype IDs (33) 660 Alien Tech Used (0) 0 Bonus (4469) 4469 TOTAL SCORE: 20428 Bonus ------- High Alert Combat Kills 1339 Follower Combat Kills 1660 Entered DSFs 500 Network Hubs Disabled 200 Aligned with FarCom 300 Built Enhanced Grunts 300 A7 Reached Mainframe 300 Met R17 at Cetus 500 Friendly Fire -630 Cogmind --------- Core Integrity 0/1150 Matter 300/300 Energy 92/100 System Corruption 37% Temperature Cool (9) Movement Core (50) Location -4/Factory Parts ------- > --- POWER (2) -------- (None) > --- PROPULSION (4) --- (None) > --- UTILITY (10) ----- Experimental Signal Interpreter Advanced Terrain Scan Processor Advanced Targeting Computer Hacking Suite Hacking Suite Improved Hacking Suite > --- WEAPON (3) ------- (None) > --- INVENTORY (5) ---- Antimatter Reactor Advanced Heat Sink Improved Matter Compressor (300) Improved Medium Armor Plating EM Disruption Field Peak State ------------ > --- POWER ------------ Cold Fusion Reactor Particle Reactor > --- PROPULSION ------- Flexi-carbon Leg Flexi-carbon Leg Flexi-carbon Leg Myomer Leg > --- UTILITY ---------- Improved Cooling System High-capacity Storage Unit Advanced Terrain Scan Processor Advanced Targeting Computer Centrium Medium Armor Plating Graphene Brace Hacking Suite Hacking Suite Improved Hacking Suite System Shield > --- WEAPON ----------- Dispersion Rifle Quantum Rifle Mass Driver > --- INVENTORY -------- Neutrino Core Quantum Reactor Flexi-carbon Leg Flexi-carbon Leg Advanced Heat Sink Advanced Heat Sink Advanced Energy Well Improved Matter Compressor Improved Terrain Scanner Improved Weapon Cycler Improved Medium Armor Plating Centrium Medium Armor Plating Hacking Suite Hacking Suite Plasma Rifle Quantum Rifle Railgun Improved Proton Missile Launcher Impact Mace Spear [Rating: 110] Favorites ----------- Power Reinforced Deuterium Engine Engine Reinforced Deuterium Engine Power Core Light Fission Core Reactor Cold Fusion Reactor Propulsion Compact Wheel Treads Armored Treads Leg Flexi-carbon Leg Wheel Compact Wheel Hover Unit Antigrav System Flight Unit Cesium-ion Thruster Utility Hacking Suite Device Improved Heat Sink Storage High-capacity Storage Unit Processor Advanced Targeting Computer Hackware Hacking Suite Protection Centrium Medium Armor Plating Weapon Advanced Beam Cannon Energy Gun Heavy Particle Gun Energy Cannon Advanced Beam Cannon Ballistic Gun Coil Gun Ballistic Cannon Improved Light Cannon Launcher Mini Grenade Launcher Impact Weapon Impact Mace Slashing Weapon Chainsword Piercing Weapon Spear Build | -11 -10 -10 -9 -9 -9 -8 -8 -7 -7 -7 -6 -6 -5 -5 -5 -5 -5 -4 ------- Run | Scr Mat Min Mat Min Exi Min Mat Fac Was Fac Fac DSF Fac Ext Cet Arc Hub Fac Slots Evolved 12 | . . . 2 . . . 2 2 . . 2 . 2 . . . . 2 Power 1 | . . . . . . . . 1 . . . . . . . . . . Propulsion 2 | . . . . . . . 1 . . . . . 1 . . . . . Utility 8 | . . . 1 . . . 1 1 . . 2 . 1 . . . . 2 Weapon 1 | . . . 1 . . . . . . . . . . . . . . . Parts Attached 242 | 6 1 . 8 13 4 4 8 5 3 49 2 17 16 16 8 7 12 63 Power 21 | 1 . . 1 1 . 1 . 1 1 3 . 1 . 3 . 1 1 6 Engine 10 | 1 . . 1 1 . 1 . 1 1 2 . . . 2 . . . . Core 5 | . . . . . . . . . . 1 . 1 . 1 . . . 2 Reactor 6 | . . . . . . . . . . . . . . . . 1 1 4 Propulsion 55 | 2 . . . 4 . . 1 1 . 8 . 2 3 6 2 3 2 21 Treads 5 | . . . . . . . . . . 2 . . . . 1 . . 2 Leg 16 | . . . . 2 . . . . . . . . . . . 1 . 13 Wheel 27 | 2 . . . 2 . . 1 1 . 6 . 1 3 6 1 2 2 . Hover 4 | . . . . . . . . . . . . . . . . . . 4 Flight 3 | . . . . . . . . . . . . 1 . . . . . 2 Utility 94 | 1 . . 3 3 4 . 3 2 1 20 2 11 9 4 . 3 7 21 Device 47 | . . . 1 1 2 . 2 1 1 10 . 4 6 2 . . 5 12 Storage 8 | 1 . . 2 1 1 . . . . . . . . . . 1 1 1 Processor 9 | . . . . . 1 . 1 1 . 2 . . 2 . . . 1 1 Hackware 18 | . . . . . . . . . . 4 2 6 1 . . 1 . 4 Protection 12 | . . . . 1 . . . . . 4 . 1 . 2 . 1 . 3 Artifact . | . . . . . . . . . . . . . . . . . . . Weapon 72 | 2 1 . 4 5 . 3 4 1 1 18 . 3 4 3 6 . 2 15 Energy Gun 23 | 2 . . . . . . . 1 . 7 . 2 . 1 3 . . 7 Energy Cannon 16 | . . . 2 3 . 1 1 . . 4 . 1 2 1 1 . . . Ballistic Gun 6 | . . . 2 . . . . . . . . . 1 . . . 1 2 Ballistic Cannon 7 | . . . . 1 . 1 1 . . 2 . . . . 1 . 1 . Launcher 9 | . 1 . . 1 . 1 1 . 1 . . . . 1 . . . 3 Special Weapon . | . . . . . . . . . . . . . . . . . . . Impact Weapon 4 | . . . . . . . . . . . . . . . 1 . . 3 Slashing Weapon 4 | . . . . . . . . . . 3 . . 1 . . . . . Piercing Weapon 3 | . . . . . . . 1 . . 2 . . . . . . . . Special Melee Weapon . | . . . . . . . . . . . . . . . . . . . Unidentified Prototypes 21 | . . . 1 . 3 . . 1 . 4 . 2 . 1 1 3 3 2 Corrupted Parts 4 | . . . . . . . . . . . . . . . 1 . . 3 System Corruption 32 | . . . . . . . . . . . . . . . 6 . . 26 Parts Lost 87 | . . . . 2 . 1 . . 3 13 . 2 . 9 6 1 4 46 Power 14 | . . . . . . 1 . . 1 2 . 1 . 2 . . . 7 Propulsion 32 | . . . . 1 . . . . . 5 . . . 4 3 . 2 17 Utility 22 | . . . . 1 . . . . 1 3 . 1 . 2 . 1 . 13 Weapon 19 | . . . . . . . . . 1 3 . . . 1 3 . 2 9 Highest Loss Streak 12 | . . . . 1 . 1 . . 3 8 . 1 . 6 3 1 2 12 To Critical Strikes 1 | . . . . . . . . . . . . . . . 1 . . . Average Slot Usage (%) 89 | . 85 85 99 92 87 88 88 90 79 88 86 85 87 94 94 92 90 85 Engine 7 | . 14 14 11 11 11 11 9 15 9 11 13 9 5 5 5 2 . . Core 1 | . . . . . . . . . . 2 . 2 5 3 5 5 1 1 Reactor 1 | . . . . . . . . . . . . . . . . 2 9 6 Treads 1 | . . . . . . . . . . 4 . . . . 1 5 3 . Leg 2 | . . . . 8 . . . . . . . . . . . . . 11 Wheel 11 | . 28 28 22 6 11 11 18 13 15 12 13 13 16 19 16 10 9 1 Device 9 | . . . 10 7 11 11 17 15 15 15 6 6 9 7 5 . 4 6 Storage 8 | . 14 14 22 14 11 11 9 7 7 7 6 6 5 5 5 10 5 6 Processor 8 | . . . . . 7 11 9 15 11 9 6 6 8 11 11 6 10 10 Hackware 8 | . . . . . . . . . . . 13 13 16 17 17 20 23 20 Protection 3 | . . . . 11 2 . . . . 3 13 11 3 2 5 5 . 4 Energy Gun 4 | . 25 14 4 . . . . 4 7 5 6 1 . 4 5 11 8 7 Energy Cannon 6 | . . . 12 15 22 20 7 7 1 3 . 4 4 10 3 . . . Ballistic Cannon 6 | . . . . 10 11 11 14 7 7 5 6 6 5 . 4 5 5 2 Launcher 1 | . 2 14 11 6 . . . . 2 . . . . . . . . . Naked Turns . | . . . . . . . . . . . . . . . . . . . Heaviest Build 102 | 13 13 13 30 36 63 63 64 71 73 94 94 98 94 94 94 93 93 102 Greatest Support 85 | 26 26 26 26 28 28 28 38 38 38 40 40 40 56 64 80 32 32 85 Greatest Overweight (x) 33 | . . . 1 10 2 2 1 1 5 7 2 3 1 3 2 5 5 33 Average Overweight (x) 1 | . . . . 1 1 2 1 1 2 2 2 2 1 1 1 2 2 1 Largest Inventory Capacity 20 | 8 8 8 10 10 20 20 20 20 20 20 20 20 20 20 20 20 20 20 Average Capacity 17 | 7 8 8 9 10 14 20 20 20 20 20 20 20 20 20 20 20 20 18 Most Carried 20 | 4 8 8 10 10 10 13 20 19 20 20 20 20 20 20 20 20 20 20 Average Carried 15 | 2 6 7 8 9 10 11 16 18 19 19 19 19 19 18 18 19 19 14 Final Capacity 20 | 8 8 8 10 10 20 20 20 20 20 20 20 20 20 20 20 20 20 5 Final Carried 20 | 4 8 8 10 10 10 12 20 19 20 20 20 19 20 19 20 20 19 5 Class Distribution -------------------- 23% | Scavenger-Skirmisher 19% | Skirmisher 13% | Mutant 13% | Hacker-Skirmisher 8% | Scavenger-Mutant 7% | Tank 4% | Hacker-Tank 3% | Hacker-Mutant Dominant Class ---------------- Mutant | -10/Materials Mutant | -10/Mines Mutant | -9/Materials Mutant | -9/Mines Skirmisher | -9/Exiles Skirmisher | -8/Mines Mutant | -8/Materials Scavenger-Skirmisher | -7/Factory Skirmisher | -7/Waste Skirmisher | -7/Factory Hacker-Tank | -6/Factory Hacker-Tank | -6/DSF Hacker-Skirmisher | -5/Factory Scavenger-Skirmisher | -5/Extension Scavenger-Skirmisher | -5/Cetus Scavenger-Skirmisher | -5/Archives Hacker-Skirmisher | -5/Hub_04(d) Scavenger-Skirmisher | -4/Factory Resources | -11 -10 -10 -9 -9 -9 -8 -8 -7 -7 -7 -6 -6 -5 -5 -5 -5 -5 -4 ----------- Run | Scr Mat Min Mat Min Exi Min Mat Fac Was Fac Fac DSF Fac Ext Cet Arc Hub Fac Matter Collected 5669 | 260 19 . 246 251 . 304 236 5 . 1328 20 312 . 484 167 140 951 946 Remotely 246 | . . . 246 . . . . . . . . . . . . . . . Salvage Created 8381 | 73 53 . 336 226 . 425 389 17 313 1057 101 335 . 1372 490 125 865 2204 Parts 370 | 3 10 . 16 11 . 18 28 3 3 71 3 13 . 34 12 12 32 101 Haulers Intercepted 9 | . . . 2 . . . 1 . . 3 1 . . . . . 2 . Recyclers Shooed 6 | . . . . . . . . . . 4 . . . 1 . . . 1 Parts Field Recycled . | . . . . . . . . . . . . . . . . . . . Retrieved Matter . | . . . . . . . . . . . . . . . . . . . Parts Self-Destructed . | . . . . . . . . . . . . . . . . . . . Prevented . | . . . . . . . . . . . . . . . . . . . Kills | -11 -10 -10 -9 -9 -9 -8 -8 -7 -7 -7 -6 -6 -5 -5 -5 -5 -5 -4 ------- Run | Scr Mat Min Mat Min Exi Min Mat Fac Was Fac Fac DSF Fac Ext Cet Arc Hub Fac Combat Hostiles Destroyed 128 | . 3 . 7 6 . 12 9 . 1 16 . 7 . 10 5 . 7 45 Melee 2 | . . . . . . . . . . 1 . . . . . . . 1 Guns 32 | . . . . . . . . . . 6 . . . . . . 4 22 Cannons 55 | . . . 6 6 . 6 4 . . 9 . 7 . 7 1 . 3 6 AOE 30 | . 3 . 1 . . 6 5 . 1 . . . . . . . . 14 Classes Destroyed 21 | 2 3 . 3 . . 1 2 . 1 5 . . . 2 . . . 2 Worker 8 | . 2 . . . . 2 . . . . 1 . . . . . 3 . Builder 1 | . . . . . . . . . . . . . . 1 . . . . Tunneler 2 | 1 . . . . . . 1 . . . . . . . . . . . Hauler 9 | . . . 2 . . . 1 . . 3 1 . . . . . 2 . Recycler 13 | 1 . . . . . 2 . . . 4 . . . 5 . . 1 . Mechanic 1 | . . . . . . . . . . 1 . . . . . . . . Operator 9 | . . . . . . . 2 1 . . . . . . . 1 3 2 Watcher 7 | . 1 . . . . . 1 . . 3 . . . . 1 . 1 . Swarmer 24 | . 3 . 4 . . 7 2 . . . . 3 . . . . . 5 Saboteur 2 | . . . . . . . . . . . . . . . . . . 2 Grunt 45 | . . . 2 6 . 4 5 . . 5 . 1 . 1 1 . 3 17 Brawler 4 | . . . . . . 1 . . . 1 . . . . . . . 2 Duelist 3 | . . . 1 . . . . . . . . . . . . . . 2 Protector 2 | . . . . . . . . . . . . . . . . . . 2 Sentry 9 | . . . . . . . 2 . . . . . . 5 . . 2 . Specialist 6 | . . . . . . . . . . 2 . 2 . . . . . 2 Hunter 10 | . . . . . . . . . . 1 . . . 2 . . 2 5 Programmer 14 | . . . . . . . . . . 6 . . . . . . . 8 Heavy 2 | . . . . . . . . . . 1 . 1 . . . . . . Behemoth 2 | . . . . . . . . . . . . . . 2 . . . . Compactor 1 | . . . . . . . . . 1 . . . . . . . . . Cetus Guard 4 | . . . . . . . . . . . . . . . 4 . . . Enhanced Grunt 1 | . . . . . . . . . . . . . . . . 1 . . Guerrilla 1 | . . . . . . . . . . . . . . . 1 . . . Best Kill Streak 8 | 2 6 . 4 2 . 8 7 1 1 4 1 3 . 5 5 1 3 7 Combat Bots Only 7 | . 3 . 4 2 . 4 7 . 1 4 . 3 . 2 4 . 2 7 Max Kills in Single Turn 4 | 1 2 . 2 1 . 3 3 1 1 1 1 1 . 2 1 1 2 4 Gunslinging . | . . . . . . . . . . . . . . . . . . . Exploded 4 | . 2 . 1 . . 3 3 . 1 . . . . . . . . 4 Melee 1 | . . . . . . . . . . 1 . . . . . . . 1 Uniques/NPCs Destroyed . | . . . . . . . . . . . . . . . . . . . Combat | -11 -10 -10 -9 -9 -9 -8 -8 -7 -7 -7 -6 -6 -5 -5 -5 -5 -5 -4 -------- Run | Scr Mat Min Mat Min Exi Min Mat Fac Was Fac Fac DSF Fac Ext Cet Arc Hub Fac Damage Taken 14088 | . 23 . 165 395 . 418 221 . 382 2313 . 370 77 1553 654 128 1094 6295 Core 2583 | . 8 . 52 224 . 83 31 . 6 425 . 60 . 263 82 52 129 1168 Absorbed by Shields 175 | . . . . . . . . . . . . 28 . . 147 . . . Regen/Repaired (Parts) 422 | . . . . . . . 87 118 . 146 . . 71 . . . . . Core Remaining (%) 68 | 100 . 96 . . . 10 94 . . 38 . 92 . . . . 47 . Volleys Fired 442 | 4 7 . 20 16 . 31 20 3 13 80 2 18 . 53 16 6 64 89 Largest 3 | 2 2 . 2 2 . 3 3 3 1 3 2 2 . 3 3 3 3 3 Hottest 257 | 80 80 . 136 136 . 175 146 168 36 218 115 115 . 135 223 207 207 257 Shots Fired 979 | 8 12 . 40 31 . 67 44 9 13 147 4 36 . 127 38 16 172 215 Gun 446 | 8 10 . 10 . . . . 3 . 82 2 8 . 22 12 10 110 169 Cannon 490 | . . . 30 30 . 61 40 6 . 65 2 28 . 105 21 6 62 34 Launcher 43 | . 2 . . 1 . 6 4 . 13 . . . . . 5 . . 12 Special . | . . . . . . . . . . . . . . . . . . . Kinetic 291 | . . . 5 7 . 25 28 3 . 48 2 18 . 5 11 6 83 50 Thermal 631 | 4 5 . 30 23 . 36 12 6 . 99 2 18 . 122 22 10 89 153 Explosive 32 | . 2 . . 1 . 6 4 . 13 . . . . . . . . 6 Electromagnetic 25 | 4 5 . 5 . . . . . . . . . . . 5 . . 6 Robot Hit Streak 40 | 3 5 . 8 15 . 5 4 1 6 12 2 7 . 16 8 4 11 40 Robot Miss Streak 6 | 1 2 . 3 4 . 5 2 2 1 5 1 3 . 4 3 4 5 6 Penetration Max 1 | . . . . . . . . . . 1 . 1 . . . . 1 1 Secondary Targets 4 | . . . . . . . . . . . . . . . . . . 4 Max Gunslinging Chain 1 | . . . . . . . . . . . . . . . . . . 1 Shots Hit Robots 629 | 6 8 . 21 18 . 28 27 4 10 105 3 21 . 99 23 7 102 147 Core Hits 350 | 3 6 . 16 10 . 21 21 2 3 54 1 10 . 32 15 8 41 107 Critical Kills 7 | . . . . . . . . . . . . . . 1 1 2 2 1 Critical Parts Destroyed 20 | . . . . . . . . . . . . . . . 2 . 17 1 Critical Strikes 48 | . . . . 1 . . 2 . . 8 1 1 . 2 3 3 20 7 Burn 6 | . . . . . . . . . . 2 . . . . . 1 1 2 Meltdown 1 | . . . . . . . . . . . . . . 1 . . . . Destroy 25 | . . . . . . . . . . . . . . . 3 2 19 1 Blast 11 | . . . . 1 . . . . . 4 1 1 . 1 . . . 3 Smash 1 | . . . . . . . . . . . . . . . . . . 1 Sever 2 | . . . . . . . . . . 2 . . . . . . . . Impale 2 | . . . . . . . 2 . . . . . . . . . . . Melee Attacks 48 | . . . . . . . 9 . . 17 . . 2 . 3 . . 17 Impact 20 | . . . . . . . . . . . . . . . 3 . . 17 Slashing 14 | . . . . . . . . . . 12 . . 2 . . . . . Piercing 14 | . . . . . . . 9 . . 5 . . . . . . . . Sneak Attacks 3 | . . . . . . . 3 . . . . . . . . . . . Combat Hostiles . | . . . . . . . . . . . . . . . . . . . Follow-up Attacks 1 | . . . . . . . . . . 1 . . . . . . . . Damage Inflicted 24234 | 103 246 . 504 518 . 1108 1259 78 1138 3761 127 909 . 2916 1105 244 2824 7394 Guns 7182 | 72 116 . 90 . . . . 20 . 1164 18 93 . 381 230 130 1762 3106 Cannons 9124 | . . . 285 367 . 528 444 58 . 1874 109 816 . 2535 326 114 758 910 Explosions 7085 | 31 130 . 129 151 . 580 502 . 1138 360 . . . . 549 . 304 3211 Melee 843 | . . . . . . . 313 . . 363 . . . . . . . 167 Ramming . | . . . . . . . . . . . . . . . . . . . Kinetic 5993 | . . . 23 120 . 260 319 38 . 1653 109 600 . 214 145 114 1155 1243 Thermal 11814 | 76 54 . 285 247 . 268 125 40 . 1745 18 309 . 2702 411 130 1365 4039 Explosive 4240 | . 130 . . 151 . 580 502 . 1138 . . . . . . . . 1739 Electromagnetic 1344 | 27 62 . 196 . . . . . . . . . . . 549 . 304 206 Impact 167 | . . . . . . . . . . . . . . . . . . 167 Slashing 270 | . . . . . . . . . . 270 . . . . . . . . Piercing 406 | . . . . . . . 313 . . 93 . . . . . . . . Highest Corruption 37 | . . . . . . . . . 6 15 . 2 . . 6 6 19 37 Average Corruption 10 | . . . . . . . . . 6 10 . 1 . . 6 6 17 10 Corruption Purged . | . . . . . . . . . . . . . . . . . . . Corruption Blocked . | . . . . . . . . . . . . . . . . . . . Effects 165 | . . . . . . . . . 2 81 . 3 . . 3 9 33 34 Message Errors 34 | . . . . . . . . . . 18 . 1 . . . 3 8 4 Matter Fused 28 | . . . . . . . . . . 18 . . . . 3 1 4 2 Heat Flow Errors 13 | . . . . . . . . . . 8 . . . . . . 3 2 Energy Discharges 21 | . . . . . . . . . . 9 . 1 . . . 1 4 6 Parts Rejected 7 | . . . . . . . . . 1 . . . . . . 1 2 3 Data Loss (minor) 21 | . . . . . . . . . 1 11 . 1 . . . 1 5 2 Data Loss (major) 7 | . . . . . . . . . . 4 . . . . . 1 1 1 Misfires 8 | . . . . . . . . . . 5 . . . . . . . 3 Alerts 5 | . . . . . . . . . . . . . . . . 1 2 2 Misdirections 9 | . . . . . . . . . . . . . . . . . . 9 Weapon Failures 12 | . . . . . . . . . . 8 . . . . . . 4 . Overload Shots 1 | . . . . . . . . . . . . . . . 1 . . . Overflow Damage 749 | . . . . 45 . 85 98 . . 261 24 . . 31 7 . 41 157 Projectiles 177 | . . . . . . . 10 . . 107 24 . . 31 . . 5 . Explosions 402 | . . . . 45 . 85 . . . 144 . . . . 7 . 36 85 Melee 170 | . . . . . . . 88 . . 10 . . . . . . . 72 Knockbacks 48 | . . . . 1 . . 1 1 . 9 . 3 . . 2 1 7 23 Impact 2 | . . . . . . . . . . . . . . . . . . 2 Kinetic 40 | . . . . 1 . . 1 1 . 9 . 3 . . 1 1 7 16 Secondary 6 | . . . . . . . . . . . . . . . 1 . . 5 Self-Inflicted Damage 879 | . . . 20 . . 2 7 . 123 293 . . . . 18 . 104 312 Shots 20 | . . . 1 . . 1 1 . 4 3 . . . . 1 . 1 8 Rammed . | . . . . . . . . . . . . . . . . . . . Targets Rammed . | . . . . . . . . . . . . . . . . . . . Kicked . | . . . . . . . . . . . . . . . . . . . Crushed . | . . . . . . . . . . . . . . . . . . . Highest Temperature 644 | 72 74 . 518 644 . 466 153 207 . 256 3 332 . 198 193 346 507 637 Average Temperature 123 | 37 38 . 182 233 . 222 60 105 . 68 2 111 . 84 86 146 117 132 Received Heat Transfer 2129 | . . . 24 144 . 162 36 . . 300 . 54 . 279 89 9 171 861 Effects 41 | . . . 5 13 . 6 . . . 1 . . . . . 1 2 13 Shutdowns 10 | . . . 1 2 . 2 . . . . . . . . . . 1 4 Energy Bleed 8 | . . . 1 2 . 1 . . . . . . . . . 1 1 2 Interference 11 | . . . 2 2 . . . . . 1 . . . . . . . 6 Matter Decay 4 | . . . . 1 . 2 . . . . . . . . . . . 1 Short Circuit 3 | . . . . 2 . 1 . . . . . . . . . . . . Damage (minor) 2 | . . . . 2 . . . . . . . . . . . . . . Damage (major) 1 | . . . 1 . . . . . . . . . . . . . . . Damage (core) 2 | . . . . 2 . . . . . . . . . . . . . . Siege Activations . | . . . . . . . . . . . . . . . . . . . Robots Corrupted 5 | . . . . . . . . . . . . . . . 4 . . 1 Combat Hostiles 5 | . . . . . . . . . . . . . . . 4 . . 1 Parts Fried 16 | . 1 . 2 . . . . . . . . . . . 9 . 3 1 Impact Corruptions 1 | . . . . . . . . . . . . . . . . . . 1 Robots Melted 4 | . . . . . . . . . . . . . . 3 . . . 1 Combat Hostiles 4 | . . . . . . . . . . . . . . 3 . . . 1 Parts Melted 31 | 1 . . . 2 . 2 . . . 3 . . . 14 . . 4 5 Heat Transferred 17092 | 150 125 . 518 444 . 481 222 74 . 2495 37 481 . 3663 568 296 2516 5022 Parts Sabotaged . | . . . . . . . . . . . . . . . . . . . Parts Stolen . | . . . . . . . . . . . . . . . . . . . Parts Stripped . | . . . . . . . . . . . . . . . . . . . Power Chain Reactions 1 | 1 . . . . . . . . . . . . . . . . . . Missiles Intercepted . | . . . . . . . . . . . . . . . . . . . Alert | -11 -10 -10 -9 -9 -9 -8 -8 -7 -7 -7 -6 -6 -5 -5 -5 -5 -5 -4 ------- Run | Scr Mat Min Mat Min Exi Min Mat Fac Was Fac Fac DSF Fac Ext Cet Arc Hub Fac Peak Influence 1286 | 10 129 49 238 163 . 291 230 30 71 378 215 393 267 246 620 435 992 1286 Initial 485 | . 6 49 18 36 . . 113 . 10 29 177 150 205 44 76 248 151 485 Average 289 | 5 27 49 83 71 . 152 126 13 36 171 204 316 204 95 324 395 603 831 Maximum Alert Level 4 | . . . 1 . . 1 1 . . 1 1 1 1 1 2 2 3 4 Low Security (%) 54 | 100 100 100 85 100 . 56 92 100 100 58 17 18 30 92 49 . 13 . Level 1 20 | . . . 14 . . 43 7 . . 41 82 81 69 7 8 27 2 . Level 2 11 | . . . . . . . . . . . . . . . 42 72 45 29 Level 3 12 | . . . . . . . . . . . . . . . . . 38 62 Level 4 1 | . . . . . . . . . . . . . . . . . . 7 Level 5 . | . . . . . . . . . . . . . . . . . . . High Security . | . . . . . . . . . . . . . . . . . . . Max Security . | . . . . . . . . . . . . . . . . . . . Sterilizations 1 | . . . . . . . . . . . . 1 . . . . . . Squads Dispatched 39 | . 1 . . 1 . 1 1 2 . 12 . 2 . . . . 5 14 Investigation 3 | . . . . 1 . . . . . 1 . . . . . . . 1 Extermination 7 | . . . . . . . . . . 4 . . . . . . 1 2 Reinforcement 23 | . 1 . . . . 1 1 2 . 7 . 2 . . . . 4 5 Assault 6 | . . . . . . . . . . . . . . . . . . 6 Garrison . | . . . . . . . . . . . . . . . . . . . Intercept . | . . . . . . . . . . . . . . . . . . . Searches Triggered . | . . . . . . . . . . . . . . . . . . . Construction Impeded 5 | . . . . . . 1 . . . 2 . . . . . . 1 1 Haulers Reinforced 2 | . . . . . . . . . . 2 . . . . . . . . Active Scanning Responses . | . . . . . . . . . . . . . . . . . . . Cargo Convoy Interrupts 1 | . . . . . . . . . . . . . . . . . . 1 Stealth | -11 -10 -10 -9 -9 -9 -8 -8 -7 -7 -7 -6 -6 -5 -5 -5 -5 -5 -4 --------- Run | Scr Mat Min Mat Min Exi Min Mat Fac Was Fac Fac DSF Fac Ext Cet Arc Hub Fac Distress Signals 7 | . . . . . . . . . . . . . . 1 2 . 3 1 Communications Jammed . | . . . . . . . . . . . . . . . . . . . Distress Signals . | . . . . . . . . . . . . . . . . . . . Times Spotted 251 | . 7 . 7 11 . 13 16 1 6 25 . 11 1 16 19 7 25 86 Peak Tracking Total 18 | . 6 . 4 3 . 4 8 1 5 5 . 4 2 3 5 2 5 18 Tactical Retreats 13 | . . . . 1 . . 1 . . 1 . 1 . 1 . . 2 6 Traps | -11 -10 -10 -9 -9 -9 -8 -8 -7 -7 -7 -6 -6 -5 -5 -5 -5 -5 -4 ------- Run | Scr Mat Min Mat Min Exi Min Mat Fac Was Fac Fac DSF Fac Ext Cet Arc Hub Fac Traps Triggered 10 | . . . . . . . . 1 . 1 . 2 . 1 . . 3 2 Indirectly . | . . . . . . . . . . . . . . . . . . . Trap Hack Attempts . | . . . . . . . . . . . . . . . . . . . Triggered . | . . . . . . . . . . . . . . . . . . . Disarmed . | . . . . . . . . . . . . . . . . . . . Reprogrammed . | . . . . . . . . . . . . . . . . . . . Reused . | . . . . . . . . . . . . . . . . . . . Traps Extracted . | . . . . . . . . . . . . . . . . . . . Installed . | . . . . . . . . . . . . . . . . . . . Triggered . | . . . . . . . . . . . . . . . . . . . Machines | -11 -10 -10 -9 -9 -9 -8 -8 -7 -7 -7 -6 -6 -5 -5 -5 -5 -5 -4 ---------- Run | Scr Mat Min Mat Min Exi Min Mat Fac Was Fac Fac DSF Fac Ext Cet Arc Hub Fac Machines Disabled 57 | . 2 . 2 . . 2 2 . . 14 . . . 3 3 2 14 13 Max in Single Turn 7 | . 1 . 2 . . 1 1 . . 7 . . . 1 . 1 6 5 Garrison Access 2 | . . . . . . . 1 . . . . . . . . . . 1 Network Hub 1 | . . . . . . . . . . . . . . . . . 1 . Machines Sabotaged . | . . . . . . . . . . . . . . . . . . . Garrisons Compromised . | . . . . . . . . . . . . . . . . . . . Overloaded Fab Kills . | . . . . . . . . . . . . . . . . . . . Hacking | -11 -10 -10 -9 -9 -9 -8 -8 -7 -7 -7 -6 -6 -5 -5 -5 -5 -5 -4 --------- Run | Scr Mat Min Mat Min Exi Min Mat Fac Was Fac Fac DSF Fac Ext Cet Arc Hub Fac Machines Accessed 51 | . 1 . 3 1 4 . 4 2 . 15 2 . 10 3 4 . 1 1 Terminals 33 | . 1 . 3 . . . 2 . . 8 2 . 8 3 4 . 1 1 Fabricators 4 | . . . . . . . . 1 . 3 . . . . . . . . Repair Stations 5 | . . . . . . . 1 1 . 2 . . 1 . . . . . Recycling Units 2 | . . . . . . . . . . 1 . . 1 . . . . . Scanalyzers 1 | . . . . . . . . . . 1 . . . . . . . . Garrison Access 1 | . . . . . . . 1 . . . . . . . . . . . Total Hacks 164 | . 2 . 8 1 49 . 9 12 . 29 4 . 31 7 7 . 4 1 Successful 123 | . . . 4 1 49 . 5 6 . 16 4 . 25 2 6 . 4 1 Failed 41 | . 2 . 4 . . . 4 6 . 13 . . 6 5 1 . . . Catastrophic 2 | . . . . . . . 1 . . . . . . 1 . . . . Database Lockouts . | . . . . . . . . . . . . . . . . . . . Manual 39 | . 2 . 5 . 1 . 3 6 . 8 2 . 5 2 1 . 4 . Terminals 77 | . 2 . 8 . . . 5 . . 15 4 . 24 7 7 . 4 1 Fabricators 13 | . . . . . . . . 7 . 6 . . . . . . . . Repair Stations 15 | . . . . . . . 2 5 . 4 . . 4 . . . . . Recycling Units 5 | . . . . . . . . . . 2 . . 3 . . . . . Scanalyzers 2 | . . . . . . . . . . 2 . . . . . . . . Garrison Access 2 | . . . . . . . 2 . . . . . . . . . . . Terminal Hacks 83 | . . . 2 1 49 . 2 . . 3 2 . 14 2 6 . 1 1 Record 55 | . . . . . 49 . . . . . 1 . . . 5 . . . Robot Analysis 2 | . . . . . . . . . . 1 . . 1 . . . . . Prototype ID Bank 5 | . . . . . . . 1 . . . . . 4 . . . . . Open Door 5 | . . . . 1 . . . . . . . . 1 2 1 . . . Open DSF 5 | . . . . . . . . . . 1 1 . 2 . . . . 1 Branch Access Points 1 | . . . . . . . . . . . . . 1 . . . . . Fabricator Index 1 | . . . . . . . . . . . . . 1 . . . . . Unreport Threat 3 | . . . 1 . . . 1 . . . . . . . . . 1 . Locate Traps 5 | . . . 1 . . . . . . 1 . . 3 . . . . . Zone Layout 1 | . . . . . . . . . . . . . 1 . . . . . Fabricator Hacks 3 | . . . . . . . . 1 . 2 . . . . . . . . Network Status 2 | . . . . . . . . 1 . 1 . . . . . . . . Build 1 | . . . . . . . . . . 1 . . . . . . . . Repair Station Hacks 12 | . . . . . . . 2 2 . 4 . . 4 . . . . . Scan Component 6 | . . . . . . . 1 1 . 2 . . 2 . . . . . Repair 6 | . . . . . . . 1 1 . 2 . . 2 . . . . . Recycling Unit Hacks 4 | . . . . . . . . . . 2 . . 2 . . . . . Process 2 | . . . . . . . . . . 1 . . 1 . . . . . Retrieve Matter 2 | . . . . . . . . . . 1 . . 1 . . . . . Scanalyzer 2 | . . . . . . . . . . 2 . . . . . . . . Insert Component 1 | . . . . . . . . . . 1 . . . . . . . . Analyze 1 | . . . . . . . . . . 1 . . . . . . . . Garrison Access Hacks 1 | . . . . . . . 1 . . . . . . . . . . . Seal Access 1 | . . . . . . . 1 . . . . . . . . . . . Unauthorized Hacks 18 | . . . 2 . . . . 3 . 3 2 . 5 . . . 3 . Terminals 13 | . . . 2 . . . . . . 1 2 . 5 . . . 3 . Track 4 | . . . 1 . . . . . . . . . 2 . . . 1 . Botnet 6 | . . . 1 . . . . . . 1 1 . 2 . . . 1 . Operators 3 | . . . . . . . . . . . 1 . 1 . . . 1 . Fabricators 5 | . . . . . . . . 3 . 2 . . . . . . . . Report 2 | . . . . . . . . 1 . 1 . . . . . . . . Prioritize 1 | . . . . . . . . 1 . . . . . . . . . . Haulers 2 | . . . . . . . . 1 . 1 . . . . . . . . Repair Stations . | . . . . . . . . . . . . . . . . . . . Recycling Units . | . . . . . . . . . . . . . . . . . . . Scanalyzers . | . . . . . . . . . . . . . . . . . . . Garrison Access . | . . . . . . . . . . . . . . . . . . . Data Cores Recovered 1 | . . . . . . . 1 . . . . . . . . . . . Used 1 | . . . . . . . 1 . . . . . . . . . . . Hacking Detections 34 | . 1 . 3 . . . 3 2 . 13 1 . 7 2 1 . 1 . Full Trace Events . | . . . . . . . . . . . . . . . . . . . Feedback Events . | . . . . . . . . . . . . . . . . . . . Feedback Blocked . | . . . . . . . . . . . . . . . . . . . Robot Schematics Acquired . | . . . . . . . . . . . . . . . . . . . Robots Built . | . . . . . . . . . . . . . . . . . . . Authchips . | . . . . . . . . . . . . . . . . . . . Time . | . . . . . . . . . . . . . . . . . . . Total Robot Build Rating . | . . . . . . . . . . . . . . . . . . . Part Schematics Acquired 1 | . . . . . . . . . . 1 . . . . . . . . Parts Built 1 | . . . . . . . . . . 1 . . . . . . . . Authchips . | . . . . . . . . . . . . . . . . . . . Time 58 | . . . . . . . . . . 58 . . . . . . . . Total Part Build Rating 7 | . . . . . . . . . . 7 . . . . . . . . Parts Repaired 5 | . . . . . . . 1 1 . 1 . . 2 . . . . . Time 266 | . . . . . . . 51 22 . 100 . . 93 . . . . . Parts Recycled . | . . . . . . . . . . . . . . . . . . . Recycled Matter 28 | . . . . . . . . . . 26 . . 2 . . . . . Retrieved Matter 2 | . . . . . . . . . . . . . 2 . . . . . Retrieved Components . | . . . . . . . . . . . . . . . . . . . Parts Scanalyzed 1 | . . . . . . . . . . 1 . . . . . . . . Part Schematics Acquired 1 | . . . . . . . . . . 1 . . . . . . . . Parts Damaged 1 | . . . . . . . . . . 1 . . . . . . . . Bothacking | -11 -10 -10 -9 -9 -9 -8 -8 -7 -7 -7 -6 -6 -5 -5 -5 -5 -5 -4 ------------ Run | Scr Mat Min Mat Min Exi Min Mat Fac Was Fac Fac DSF Fac Ext Cet Arc Hub Fac Used RIF Installer . | . . . . . . . . . . . . . . . . . . . Robots Hacked . | . . . . . . . . . . . . . . . . . . . Non-combat . | . . . . . . . . . . . . . . . . . . . Combat . | . . . . . . . . . . . . . . . . . . . Robot Hacks Applied . | . . . . . . . . . . . . . . . . . . . Relay Couplers Released . | . . . . . . . . . . . . . . . . . . . Fabnet Peak Effective % . | . . . . . . . . . . . . . . . . . . . Robots Rewired 5 | . . . . . . . . . . . 1 . . 4 . . . . Allies Hacked . | . . . . . . . . . . . . . . . . . . . Hacks Repelled . | . . . . . . . . . . . . . . . . . . . Allies | -11 -10 -10 -9 -9 -9 -8 -8 -7 -7 -7 -6 -6 -5 -5 -5 -5 -5 -4 -------- Run | Scr Mat Min Mat Min Exi Min Mat Fac Was Fac Fac DSF Fac Ext Cet Arc Hub Fac Total Allies 15 | . . . . 4 . . . . . . 1 . . 5 5 . . . Largest Group 8 | . . . . 3 2 1 . . . . 1 1 . 4 8 8 5 . Highest-Rated Group 701 | . . . . 47 47 16 . . . . 32 32 . 260 701 693 405 . Highest-Rated Ally 159 | . . . . 31 31 16 . . . . 32 32 . 159 159 159 96 . Total Orders . | . . . . . . . . . . . . . . . . . . . Ally Attacks 235 | . . . . 21 . 1 . . . . . 12 . 16 113 26 46 . Total Damage 6928 | . . . . 291 . 15 . . . . . 427 . 277 3273 877 1768 . Kills 43 | . . . . 5 . 1 . . . . . 3 . 1 14 4 15 . Allies Corrupted 3 | . . . . . . . . . . . . . . . . . 3 . Allies Melted . | . . . . . . . . . . . . . . . . . . . Intel | -11 -10 -10 -9 -9 -9 -8 -8 -7 -7 -7 -6 -6 -5 -5 -5 -5 -5 -4 ------- Run | Scr Mat Min Mat Min Exi Min Mat Fac Was Fac Fac DSF Fac Ext Cet Arc Hub Fac Robot Analysis Total 2 | . . . . . . . . . . 1 . . 1 . . . . . Derelict Logs Recovered 2 | . . . . 2 . . . . . . . . . . . . . . Drone Launches . | . . . . . . . . . . . . . . . . . . . Drone Recoveries . | . . . . . . . . . . . . . . . . . . . Exploration | -11 -10 -10 -9 -9 -9 -8 -8 -7 -7 -7 -6 -6 -5 -5 -5 -5 -5 -4 ------------- Run | Scr Mat Min Mat Min Exi Min Mat Fac Was Fac Fac DSF Fac Ext Cet Arc Hub Fac Turns Passed 10786 | 74 110 40 328 1171 526 380 825 144 231 2251 103 275 576 732 550 190 667 1613 Spaces Moved 6510 | 56 91 41 250 743 426 200 593 100 167 1319 72 127 389 427 363 117 316 713 Core 178 | 3 . . . 1 . . . . . . . . . . . . . 174 Treads 52 | . . . . . . . . . . . . . . . 49 . . 3 Legs 569 | . . . . 230 . . . . . . . . . . . . . 339 Wheels 5652 | 53 91 41 250 512 426 200 593 100 167 1319 72 127 389 427 314 117 316 138 Hover 59 | . . . . . . . . . . . . . . . . . . 59 Flight . | . . . . . . . . . . . . . . . . . . . Fastest Speed 50 | 50 90 90 90 115 115 130 105 105 105 105 125 125 111 108 115 130 130 50 Average Speed 125 | 88 90 90 97 139 122 130 105 105 118 127 125 125 111 114 132 132 140 157 Slowest Speed 1700 | 100 90 90 105 550 130 130 105 105 155 195 125 145 111 145 240 175 175 1700 Overloaded Moves . | . . . . . . . . . . . . . . . . . . . Propulsion Burnouts . | . . . . . . . . . . . . . . . . . . . Robots Hopped . | . . . . . . . . . . . . . . . . . . . Cave-ins Triggered 1 | . . . . . . . . . 1 . . . . . . . . . Exploration Rate (%) 43 | 5 25 15 19 99 92 40 30 3 93 37 2 88 12 54 89 88 31 12 Regions Visited 18 Branch Regions 8 Pre-discovered Areas 1 | . . . . . 1 . . . . . . . . . . . . . Known Exits Taken 2 | . . . . . . . . . . . 1 . 1 . . . . . Unknown Exits Taken 13 | 1 1 1 1 1 1 1 1 . . 1 . . . 1 1 1 1 . Scrap Searched 1 | . . . . 1 . . . . . . . . . . . . . . Spaces Dug 83 | . . . . . . . 2 . . 69 . . 1 . 1 . . 10 Terrain Destroyed 656 | 6 7 . . 15 . 48 33 . 71 126 . 8 1 7 4 2 156 172 Melee 17 | . . . . . . . 2 . . 3 . . 1 . 1 . . 10 Projectile 83 | . . . . 2 . 1 1 . . 21 . 8 . 7 3 2 20 18 AOE 555 | 6 7 . . 13 . 47 30 . 71 102 . . . . . . 135 144 Terrain Rammed . | . . . . . . . . . . . . . . . . . . . Walls Destroyed . | . . . . . . . . . . . . . . . . . . . Machines Disabled . | . . . . . . . . . . . . . . . . . . . Actions | -11 -10 -10 -9 -9 -9 -8 -8 -7 -7 -7 -6 -6 -5 -5 -5 -5 -5 -4 --------- Run | Scr Mat Min Mat Min Exi Min Mat Fac Was Fac Fac DSF Fac Ext Cet Arc Hub Fac Total 8123 | 69 107 44 296 850 433 265 743 131 187 1699 80 196 529 556 396 140 411 991 Wait 610 | . 1 . 8 59 . 26 89 22 4 180 1 7 106 18 . . 12 77 Move 6492 | 55 90 40 249 742 425 199 592 100 165 1318 71 126 388 426 362 116 315 713 Hop . | . . . . . . . . . . . . . . . . . . . Pick Up 120 | 4 6 1 5 8 . 4 17 1 1 25 2 1 8 10 6 5 2 14 Fast Attach 84 | 6 . . 4 4 3 . 1 1 1 14 . 10 3 4 1 3 6 23 Attach 84 | . . . 2 2 . 2 4 2 1 17 2 3 5 8 4 . 3 29 Detach 27 | . . . . . . . 2 . . 9 . 7 3 . . . 2 4 Swap 75 | . 1 . 2 7 1 2 3 2 1 19 . 4 8 4 3 4 3 11 Drop 92 | . 2 1 6 12 4 1 6 . . 21 . 4 6 5 1 6 4 13 Fire 442 | 4 7 . 20 16 . 31 20 3 13 80 2 18 . 53 16 6 64 89 Melee 47 | . . . . . . . 9 . . 16 . . 2 . 3 . . 17 Ram 1 | . . . . . . . . . . . . . . . . . . 1 Kick . | . . . . . . . . . . . . . . . . . . . Crush . | . . . . . . . . . . . . . . . . . . . Escape Stasis 25 | . . . . . . . . . 1 . . 16 . 8 . . . . Rewire 24 | . . 2 . . . . . . . . 2 . . 20 . . . . Trap . | . . . . . . . . . . . . . . . . . . . Miscellaneous . | . . . . . . . . . . . . . . . . . . . Route ------- -11/Scrapyard -10/Materials -10/Mines -9/Materials -9/Mines (discovered 3 exits: *Mat x2 / *Exi) -9/Exiles (discovered 2 exits: [*Min x2]) -8/Mines -8/Materials -7/Factory -7/Waste -7/Factory -6/Factory -6/DSF -5/Factory (discovered 4 exits: *Upp x2 / *Ext x2) -5/Extension (discovered 3 exits: *Fac x2 / *Cet) -5/Cetus (discovered 2 exits: *Fac / *Arc) -5/Archives (discovered 3 exits: *Fac / *Hub x2) -5/Hub_04(d) -4/Factory History --------- Turn | Location | Event 21 | -11/Scrapyard | Discovered new exit (range 16) 75 | -11/Scrapyard | Entered Materials 173 | -10/Materials | Discovered new exit (range 15) 185 | -10/Materials | Entered Mines 192 | -10/Mines | Received a Rocket Launcher from a helpful Derelict 202 | -10/Mines | Discovered new exit (range 9) 225 | -10/Mines | Entered Materials 225 | -9/Materials | Evolved 2 slots: Utility x1, Weapon x1 312 | -9/Materials | Build established: Mutant 540 | -9/Materials | Discovered new exit (range 9) 553 | -9/Materials | Entered Mines 583 | -9/Mines | Core integrity fell below 50% 1015 | -9/Mines | Assisted by bots powering up and referring to "LRC-V3" 1192 | -9/Mines | Escorted by a lone wolf Derelict 1252 | -9/Mines | A weapon hastily lodged in a ceiling crevice suddenly fell to the ground 1413 | -9/Mines | Met a Derelict shopkeep closing up shop 1553 | -9/Mines | Discovered new exit (range 8) 1563 | -9/Mines | Learned Materials security intel 1580 | -9/Mines | Discovered new exit (range 9) 1717 | -9/Mines | Deemed a non-threat by the Exiles lab entrance 1717 | -9/Mines | Discovered new exit (range 5) 1724 | -9/Mines | Build established: Tank 1724 | -9/Mines | Entered Exiles 1724 | -9/Exiles | Accompanied by 2 allies 1739 | -9/Exiles | Discovered new exit (range 15) 1752 | -9/Exiles | Met 8R-AWN 1772 | -9/Exiles | Met EX-HEX 1804 | -9/Exiles | Met EX-BIN 1816 | -9/Exiles | Aligned with FarCom system 1818 | -9/Exiles | Given EX-Vault access code 1862 | -9/Exiles | Opened EX-Vault 1868 | -9/Exiles | Found Prototype Device 1868 | -9/Exiles | Identified Trap Reconfigurator 1872 | -9/Exiles | Found Prototype Device 1872 | -9/Exiles | Identified PSU Rigger 1876 | -9/Exiles | Found Prototype Processor 1876 | -9/Exiles | Identified 0b10 Alert Chip 1905 | -9/Exiles | Warned to stay clear of 0b10 Research branches 1949 | -9/Exiles | Learned location of Zion (-7) 1950 | -9/Exiles | Met EX-DEC 2041 | -9/Exiles | Visited The Gauntlet 2165 | -9/Exiles | Build established: Skirmisher 2240 | -9/Exiles | Discovered new exit (range 10) 2250 | -9/Exiles | Left Exiles lab with 0b10 Alert Chip 2250 | -9/Exiles | Entered Mines 2250 | -8/Mines | Accompanied by 1 ally 2507 | -8/Mines | Core integrity fell below 20% 2625 | -8/Mines | Discovered new exit (range 5) 2630 | -8/Mines | Entered Materials 2630 | -8/Materials | Evolved 2 slots: Propulsion x1, Utility x1 2710 | -8/Materials | Repaired Adv. Beam Cannon? 3096 | -8/Materials | Destroyed 7 combat bots 3446 | -8/Materials | Discovered new exit (range 9) 3449 | -8/Materials | Build established: Mutant 3455 | -8/Materials | Entered Factory 3455 | -7/Factory | Evolved 2 slots: Power x1, Utility x1 3488 | -7/Factory | Repaired Arm. Huge Wheel 3599 | -7/Factory | Sucked down chute 3599 | -7/Factory | Entered Waste 3651 | -7/Waste | Spotted C-40 Crusher 3661 | -7/Waste | Destroyed C-40 Crusher 3667 | -7/Waste | Spotted C-40 Crusher 3690 | -7/Waste | Spotted C-40 Crusher 3713 | -7/Waste | Crushed by Compactor (1 part destroyed, 1 dropped) 3714 | -7/Waste | Spotted C-40 Crusher 3720 | -7/Waste | Spotted C-40 Crusher 3724 | -7/Waste | Spotted C-40 Crusher 3732 | -7/Waste | Crushed by falling debris 3763 | -7/Waste | Lost 3 parts (1p1u1w) 3807 | -7/Waste | Discovered new exit (range 16) 3830 | -7/Waste | Entered Factory 4432 | -7/Factory | Fabricated Lrn. Terrain Scanner (x1) 4712 | -7/Factory | System corruption reached 10% 4742 | -7/Factory | Lost 8 parts (2p3n1u2w) 5020 | -7/Factory | Core integrity fell below 50% 5306 | -7/Factory | Build established: Scavenger-Skirmisher 5383 | -7/Factory | Repaired Hvy. Assault Cannon 6059 | -7/Factory | Discovered new exit (range 16) 6081 | -7/Factory | Entered another Factory area 6081 | -6/Factory | Evolved 2 slots: Utility x2 6178 | -6/Factory | Identified exit to DSF 6184 | -6/Factory | Entered DSF 6184 | -6/DSF | Accompanied by 1 ally 6200 | -6/DSF | Additional patrols routed to DSF 6345 | -6/DSF | Sterilization system engaged 6365 | -6/DSF | Ambient heat levels rising (+10) 6371 | -6/DSF | Discovered new exit (range 15) 6380 | -6/DSF | Ambient heat levels rising (+10) 6383 | -6/DSF | Build established: Hacker-Tank 6395 | -6/DSF | Ambient heat levels rising (+10) 6410 | -6/DSF | Ambient heat levels rising (+10) 6425 | -6/DSF | Ambient heat levels rising (+10) 6440 | -6/DSF | Ambient heat levels rising (+10) 6455 | -6/DSF | Ambient heat levels rising (+10) 6459 | -6/DSF | Entered Factory 6459 | -5/Factory | Evolved 2 slots: Propulsion x1, Utility x1 6554 | -5/Factory | Discovered new exit (range 11) 6607 | -5/Factory | Identified exit to Upper Caves 6607 | -5/Factory | Identified exit to Extension 6675 | -5/Factory | Repaired Broken Adv. Terrain Scan Processor 6708 | -5/Factory | Repaired Arm. Wheel 6912 | -5/Factory | Build established: Hacker-Skirmisher 7035 | -5/Factory | Entered Extension 7036 | -5/Extension | Disrupted transfer network 7120 | -5/Extension | Spotted B-75 Beast 7174 | -5/Extension | Destroyed B-75 Beast 7204 | -5/Extension | Lost 6 parts (1p2n2u1w) 7248 | -5/Extension | Spotted B-75 Beast 7255 | -5/Extension | Destroyed B-75 Beast 7318 | -5/Extension | Discovered new exit (range 3) 7500 | -5/Extension | Discovered new exit (range 16) 7500 | -5/Extension | Discovered new exit (range 16) 7692 | -5/Extension | Build established: Scavenger-Skirmisher 7718 | -5/Extension | Rescued A7 7767 | -5/Extension | Entered Cetus 7767 | -5/Cetus | Accompanied by 4 allies (A7) 7772 | -5/Cetus | Acquired a Cetus Manufacturing Module code from A7 7783 | -5/Cetus | Spotted Cetus Guard 7783 | -5/Cetus | Spotted Cetus Guard 7784 | -5/Cetus | Spotted Cetus Guard 7791 | -5/Cetus | Destroyed Cetus Guard 7794 | -5/Cetus | Spotted Cetus Guard 7802 | -5/Cetus | Destroyed Cetus Guard 7805 | -5/Cetus | Destroyed Cetus Guard 7816 | -5/Cetus | Destroyed Cetus Guard 7832 | -5/Cetus | Lost 3 parts (1n2w) 7878 | -5/Cetus | Started Cetus Manufacturing Module 7886 | -5/Cetus | Escorted A7 to Cetus Mainframe 7903 | -5/Cetus | Manufactured an Enhanced Grunt 7928 | -5/Cetus | Manufactured an Enhanced Grunt 7953 | -5/Cetus | Manufactured an Enhanced Grunt 7978 | -5/Cetus | Manufactured an Enhanced Grunt 8003 | -5/Cetus | Manufactured an Enhanced Grunt 8065 | -5/Cetus | Discovered new exit (range 16) 8085 | -5/Cetus | Cetus Manufacturing Module disabled 8108 | -5/Cetus | Found a strange terminal 8148 | -5/Cetus | Spotted Cetus Guard 8148 | -5/Cetus | Spotted Cetus Guard 8150 | -5/Cetus | Spotted Cetus Guard 8158 | -5/Cetus | Spotted Cetus Guard 8164 | -5/Cetus | Allies destroyed Cetus Guard 8164 | -5/Cetus | Discovered new exit (range 16) 8165 | -5/Cetus | Allies destroyed Cetus Guard 8166 | -5/Cetus | Allies destroyed Cetus Guard 8171 | -5/Cetus | Allies destroyed Cetus Guard 8174 | -5/Cetus | Met Revision 17 8195 | -5/Cetus | Lost 3 parts (2n1w) 8317 | -5/Cetus | Entered Archives 8317 | -5/Archives | Accompanied by 8 allies (A7) 8322 | -5/Archives | Received a hacking code to weaken MAIN.C 8393 | -5/Archives | Discovered new exit (range 14) 8413 | -5/Archives | Discovered new exit (range 16) 8426 | -5/Archives | Unable to access archive contents 8485 | -5/Archives | Discovered new exit (range 14) 8507 | -5/Archives | Entered Hub_04(d) 8507 | -5/Hub_04(d) | Accompanied by 5 allies 8557 | -5/Hub_04(d) | System corruption reached 10% 8706 | -5/Hub_04(d) | Discovered new exit (range 15) 8809 | -5/Hub_04(d) | Found Prototype Device 8809 | -5/Hub_04(d) | Identified Exp. Thermal Shield 8964 | -5/Hub_04(d) | Core integrity fell below 50% 9009 | -5/Hub_04(d) | Disrupted transfer network 9127 | -5/Hub_04(d) | Network Hub disabled 9174 | -5/Hub_04(d) | Entered Factory 9174 | -4/Factory | Evolved 2 slots: Utility x2 9424 | -4/Factory | First assault squad dispatched 9448 | -4/Factory | Lost 5 parts (2n1u2w) 9956 | -4/Factory | Lost 3 parts (1p2w) 10401 | -4/Factory | Lost 12 parts (1p4n5u2w) 10468 | -4/Factory | System corruption reached 10% 10498 | -4/Factory | Lost 4 parts (2p2n) 10619 | -4/Factory | System corruption reached 30% 10623 | -4/Factory | Cargo convoy interrupted 10628 | -4/Factory | Spotted Executioner 10668 | -4/Factory | Core integrity fell below 50% 10686 | -4/Factory | Destroyed 7 combat bots 10700 | -4/Factory | Lost 7 parts (2p3n2u) 10741 | -4/Factory | Found Prototype Processor 10741 | -4/Factory | Identified Exp. Signal Interpreter 10778 | -4/Factory | Core integrity fell below 20% 10787 | -4/Factory | Destroyed by G-73 Enforcer with Phase Gun Last Messages --------------- 10768_ MT #JLKDLMJ|AF&X&CD7SXB& %3RRBFN|Z4U 10770_ Penetrated by Slug. 10774_ C-30 ARC bursts open, deploying its payload. 10774_ G-73 Enforcer unfolds itself. 10774_ L-61 Swordsman unfolds itself. 10774_ G-67 Veteran unfolds itself. 10774_ E-15 Imp unfolds itself. 10774_ Imp. System Shield destroyed. 10775_ Arm. Medium Treads destroyed. 10776_ K-01 Serf collects debris. 10777_ Impact Mace destroyed. 10778_ E-15 Imp destroyed. 10778_ Acquired Cesium-ion Thruster. 10779_ Slug penetrates Wall. 10779_ Cesium-ion Thruster destroyed. 10779_ K-01 Serf collects debris. 10780_ Acquired Cesium-ion Thruster. 10780_ Critical hit (Burn: +50). 10781_ Cesium-ion Thruster destroyed. 10782_ Acquired 10 matter. Map ----- +----------------------------------------------------+ | ?????????????????????????????????????????????????? | | ?????????????????????????????????????????????????? | | ?????????????????????????????????????????????????? | | ?????????????????????????????????????????????????? | | ?????????????????????????????????????????????????? | | ?????????????????????????????????????????????????? | | ?????????????????????????????????????????????????? | | ?????????????????????????????????????????????????? | | ?????????????????????????????????????????????????? | | ????????????????????????Y????????????????????????? | | ?????????????????????????????????????????????????? | | ?????????????????????????????????????????????????? | | ?????????????????????????????????????????????????? | | ?????????????????????????????????????????????????? | | ????????????????H????????????????????????????????? | | ?????????????????????????????????????????????????? | | ?????????????????????????????????????????????????? | | ?????????????????????????????????????????????????? | | ?????????????????????????????????????????????????? | | ???????????? ???????????????????????????????????? | | ???????????? ?? ???????????????????????###### | | ????????????? ??????????????????????# | | ???????????????? ?????????????????????# | | ??????????????????# ??????????######????#""" | | ??????????????????# ########? ?????#""" | | ??????????????????# @ #?"" ""?????#""" | | ??????????????????# # "" ""?????# | | ??????????????????# # "T """????#""" | | ??????????????????# + "" ""????#""" | | ??????????????????# # "" ""????#""" | | ??????????????????### #### # ]??# | | ??????????Y?????????#+???# l###########??# | | ?????????????????????????# ss ############ | | ?????????????????????????# # | | ?????????????????????????# #h ! | | ?????????????????????????# gg / | | ?????????????????????????# g # ] = | | ?????????????????????????# # | | ?????????????????????????# "######## | | ?????????????????????????# %######## | | ?????????????????????????# = | | ???????????????????????? | | ????????????????????????## | | ?????????????????????????# ####### | | ?????????????????????????# ########?????###### | | ?????????????????????????# ??????????????????? | | ????????????????????????? ??????????????????? | | ??????????????????????????? ??????????????????? | | ????????????????????????????? ??????????????????? | | ?????????????????????????????????????????????????? | +----------------------------------------------------+ Best States ------------- Heat Dissipation 102 Coolant Potential 145 Energy Generation 41 Energy Capacity 1065 Matter Stores 450 Matter Capacity 450 Sight Range 16 Terrain Scan Range 24 Terrain Scan Density 210 Armor Coverage 375 Resistance: TH 30 Resistance: EM 25 Evasion (%) 54 Targeting Accuracy 8 Recoil Reduction 2 Offensive Hacking 44 Defensive Hacking 12 Authchip Count 1 Item Schematics ----------------- Adv. Terrain Scan Processor | -7/Factory | Scanalyzed Robot Schematics ------------------ None Fabricated ------------ Lrn. Terrain Scanner | x1 | -7/Factory | Preloaded Alien Tech Used ----------------- None Achievements -------------- Main Advantage Project G-00 Challenges ------------ None Game ------ Seed DynamicDecoyCleaver Manual? 0 Play Time 03:32:50 Cumulative 193.5 hours Start 2022.03.24 @ 16:16:25 End 2022.03.26 @ 18:21:21 Sessions 5 Manual Loads 0 Difficulty Rogue Special Mode None Game No. 96 Rogue 96 Adventurer 0 Explorer 0 Win Type - Total 5 Types 4/0/1/0/0/0/0/0/0 Lore% 66 Gallery% 72 Achievement% 60 Wizard Run 0 Options --------- ASCII 0 Keyboard 1 Movement Numpad Keybinds 0 Fullscreen 2 Font 18/SmallcapsGlow Map View 76x50 Tactical HUD 1 Map Filters NONE Filters NONE Steam 1 RUN: e2d09c80-59ef-47e1-b3e8-cae086046fb3